Cogmind - Beta 15 @@@ ROGUE MODE // 2025.10.19 @ 11:21:50 Player: DietSnapple Result: Self-destructed Performance ------------- Evolutions (2) 1000 Regions Visited (5) 1000 Robots Destroyed (25) 125 Value Destroyed (711) 711 Prototype IDs (23) 460 Alien Tech Used (0) 0 Bonus (300) 300 TOTAL SCORE: 3596 Bonus ------- Aligned with FarCom 300 Cogmind --------- Core Integrity 329/550 Matter 280/300 Energy 52/100 System Corruption 2% Temperature Cool (0) Movement Treading (152) Location -8/Materials Parts ------- > --- POWER (1) -------- (None) > --- PROPULSION (3) --- Light Treads Advanced Treads > --- UTILITY (4) ------ Improved Heat Sink Large Storage Unit Improved Utility Shielding > --- WEAPON (3) ------- Beam Cannon > --- INVENTORY (15) --- High-capacity Storage Unit Advanced Visual Processing Unit Signal Interpreter Improved Signal Interpreter ECM Suite Power Shielding Light Armor Plating Beam Cannon Heavy Particle Cannon YOLO Cannon Light Cannon Improved Datajack Axe Peak State ------------ > --- POWER ------------ Ion Engine > --- PROPULSION ------- Wheel Compact Wheel > --- UTILITY ---------- Improved Heat Sink Large Storage Unit Light Armor Plating Light Armor Plating > --- WEAPON ----------- Light Cannon Improved Light Cannon Shock Bomb Launcher > --- INVENTORY -------- High-capacity Storage Unit Signal Interpreter ECM Suite Power Shielding Improved Utility Shielding Beam Cannon Beam Cannon Heavy Particle Cannon YOLO Cannon Light Cannon Improved Datajack Axe [Rating: 18] Favorites ----------- Power Ion Engine Engine Ion Engine Propulsion Compact Wheel Treads Light Treads Wheel Compact Wheel Utility Large Storage Unit Device Improved Heat Sink Storage Large Storage Unit Protection Light Armor Plating Weapon Light Cannon Energy Gun Small Laser Energy Cannon Beam Cannon Ballistic Gun Assault Rifle Ballistic Cannon Light Cannon Launcher Shock Bomb Launcher Build | -11 -10 -10 -10 -9 -8 ------- Run | Yrd Mat Min Exi Min Mat Slots Evolved 4 | . . . . . 4 Power . | . . . . . . Propulsion 1 | . . . . . 1 Utility 2 | . . . . . 2 Weapon 1 | . . . . . 1 Parts Attached 23 | 7 7 . . . 9 Power 4 | 1 2 . . . 1 Engine 4 | 1 2 . . . 1 Core . | . . . . . . Reactor . | . . . . . . Propulsion 4 | 2 . . . . 2 Treads 2 | . . . . . 2 Leg . | . . . . . . Wheel 2 | 2 . . . . . Hover . | . . . . . . Flight . | . . . . . . Utility 6 | 1 2 . . . 3 Device 1 | . . . . . 1 Storage 2 | 1 1 . . . . Processor . | . . . . . . Hackware . | . . . . . . Protection 3 | . 1 . . . 2 Artifact . | . . . . . . Weapon 9 | 3 3 . . . 3 Energy Gun 1 | 1 . . . . . Energy Cannon 2 | . 1 . . . 1 Ballistic Gun 2 | 2 . . . . . Ballistic Cannon 3 | . 2 . . . 1 Launcher 1 | . . . . . 1 Special Weapon . | . . . . . . Impact Weapon . | . . . . . . Slashing Weapon . | . . . . . . Piercing Weapon . | . . . . . . Special Melee Weapon . | . . . . . . Unidentified Prototypes . | . . . . . . Parts Lost 8 | . . . . . 8 Power 1 | . . . . . 1 Propulsion 2 | . . . . . 2 Utility 2 | . . . . . 2 Weapon 3 | . . . . . 3 Highest Loss Streak 4 | . . . . . 4 To Critical Strikes . | . . . . . . Average Backups 10 | 1 7 10 10 12 13 Power . | . . . . . . Propulsion . | 1 . . . . . Utility 4 | . 3 5 5 6 6 Weapon 4 | . 3 5 5 6 5 Tool/Special . | . . . . . . Unused Backups 15 | . 2 . 1 . 12 Power . | . . . . . . Propulsion 2 | . 2 . . . . Utility 8 | . . . 1 . 7 Weapon 4 | . . . . . 4 Tool/Special 1 | . . . . . 1 Average Slot Usage (%) 86 | . 91 100 100 100 62 Engine 11 | . 14 14 14 14 6 Treads 1 | . . . . . 5 Wheel 22 | . 28 28 28 28 9 Device 1 | . . . . . 6 Storage 12 | . 14 14 14 14 9 Protection 9 | . 5 14 14 14 7 Ballistic Gun 4 | . 16 . . . . Ballistic Cannon 18 | . 11 28 28 28 10 Launcher 1 | . . . . . 4 Peak Build Rating 18 | 6 8 8 10 10 18 Average Rating 9 | 4 7 8 9 10 14 On Entrance 7 | . 6 8 8 10 10 Naked Turns . | . . . . . . Heaviest Build 45 | 12 34 34 34 34 45 Greatest Support 42 | 26 26 26 26 26 42 Greatest Overweight (x) 8 | . 1 1 1 1 8 Average Overweight (x) . | . . 1 1 1 . Largest Inventory Capacity 15 | 8 15 15 15 15 15 Average Capacity 13 | 6 10 15 15 15 15 Most Carried 15 | 3 10 10 15 13 15 Average Carried 10 | 1 7 10 11 13 14 Final Capacity 15 | 8 15 15 15 15 15 Final Carried 14 | 3 10 10 13 13 14 Class Distribution -------------------- 88% | Mutant 7% | Tank 3% | Skirmisher Dominant Class ---------------- Mutant | -10/Materials Mutant | -10/Mines Mutant | -10/Exiles Mutant | -9/Mines Mutant | -8/Materials Resources | -11 -10 -10 -10 -9 -8 ----------- Run | Yrd Mat Min Exi Min Mat Matter Collected 735 | 217 254 32 . 23 209 Remotely . | . . . . . . Salvage Created 733 | . 281 18 . . 434 Parts 46 | . 16 . . . 30 Haulers Intercepted 1 | . 1 . . . . Recyclers Shooed 2 | . . . . . 2 Parts Field Recycled . | . . . . . . Retrieved Matter . | . . . . . . Parts Self-Destructed . | . . . . . . Prevented . | . . . . . . Kills | -11 -10 -10 -10 -9 -8 ------- Run | Yrd Mat Min Exi Min Mat Combat Hostiles Destroyed 18 | . 8 2 . . 8 Guns 7 | . 7 . . . . Cannons 8 | . 1 2 . . 5 AOE 3 | . . . . . 3 Classes Destroyed 9 | . 4 . . . 5 Builder 4 | . . . . . 4 Tunneler 1 | . . . . . 1 Hauler 1 | . 1 . . . . Operator 1 | . 1 . . . . Swarmer 5 | . 3 2 . . . Grunt 8 | . 5 . . . 3 Sentry 2 | . . . . . 2 Specialist 2 | . . . . . 2 Hunter 1 | . . . . . 1 Best Kill Streak 7 | . 5 2 . . 7 Combat Bots Only 5 | . 5 2 . . 4 Max Kills in Single Turn 3 | . 1 1 . . 3 Gunslinging . | . . . . . . Exploded 1 | . . . . . 1 Melee . | . . . . . . Uniques/NPCs Destroyed . | . . . . . . Combat | -11 -10 -10 -10 -9 -8 -------- Run | Yrd Mat Min Exi Min Mat Hostile Shots Fired 103 | . 24 9 . . 70 Missed 22 | . 3 3 . . 16 Hits 81 | . 21 6 . . 54 Melee 12 | . . . . . 12 Projectile 69 | . 21 6 . . 42 Critical Strikes 5 | . . . . . 5 Actively Blocked 1 | . . . . . 1 Damage Taken 1400 | . 237 54 . . 1109 Core 276 | . 38 17 . . 221 Absorbed by Shields . | . . . . . . Redirected to Shielding 38 | . . . . . 38 Core Remaining (%) 89 | 100 . . . 78 . Volleys Fired 59 | . 24 4 . . 31 Largest 3 | . 2 2 . . 3 Hottest 99 | . 60 60 . . 99 Shots Fired 107 | . 48 8 . . 51 Gun 30 | . 30 . . . . Cannon 67 | . 18 8 . . 41 Launcher 10 | . . . . . 10 Special . | . . . . . . Kinetic 88 | . 48 8 . . 32 Thermal 9 | . . . . . 9 Explosive . | . . . . . . Electromagnetic 10 | . . . . . 10 Robot Hit Streak 10 | . 10 2 . . 8 Robot Miss Streak 4 | . 2 2 . . 4 Penetration Max . | . . . . . . Secondary Targets 1 | . 1 . . . . Max Gunslinging Chain 1 | . 1 . . . . Shots Hit Robots 70 | . 33 3 . . 34 Core Hits 37 | . 13 2 . . 22 Critical Kills . | . . . . . . Critical Parts Destroyed . | . . . . . . Critical Strikes . | . . . . . . Melee Attacks . | . . . . . . Impact . | . . . . . . Slashing . | . . . . . . Piercing . | . . . . . . Sneak Attacks . | . . . . . . Combat Hostiles . | . . . . . . Follow-up Attacks . | . . . . . . Damage Inflicted 1740 | . 476 66 . . 1198 Guns 282 | . 282 . . . . Cannons 761 | . 194 46 . . 521 Explosions 640 | . . . . . 640 Melee . | . . . . . . Ramming 57 | . . 20 . . 37 Kinetic 940 | . 476 46 . . 418 Thermal 139 | . . . . . 139 Explosive 235 | . . . . . 235 Electromagnetic 369 | . . . . . 369 Impact . | . . . . . . Slashing . | . . . . . . Piercing . | . . . . . . Highest Corruption 2 | . . . . . 2 Average Corruption 1 | . . . . . 1 Corruption Purged . | . . . . . . Corruption Blocked . | . . . . . . Effects 3 | . . . . . 3 Message Errors 1 | . . . . . 1 Heat Flow Errors 1 | . . . . . 1 Energy Discharges 1 | . . . . . 1 Overload Shots . | . . . . . . Overflow Damage 66 | . . . . . 66 Projectiles . | . . . . . . Explosions 66 | . . . . . 66 Melee . | . . . . . . Knockbacks 3 | . . . . . 3 Impact . | . . . . . . Kinetic 3 | . . . . . 3 Secondary . | . . . . . . Self-Inflicted Damage 267 | . . 9 . . 258 Shots 10 | . . . . . 10 Rammed 9 | . . 3 . . 6 Targets Rammed 9 | . . 3 . . 6 Kicked . | . . . . . . Crushed . | . . . . . . Highest Temperature 145 | . 45 36 . . 145 Average Temperature 22 | . 19 18 . . 30 Received Heat Transfer 312 | . 114 . . . 198 Siege Activations . | . . . . . . Martial Activations . | . . . . . . Shielding Activations . | . . . . . . Robots Disrupted . | . . . . . . Combat Hostiles . | . . . . . . Robots Corrupted . | . . . . . . Combat Hostiles . | . . . . . . Parts Fried 3 | . . . . . 3 Impact Corruptions . | . . . . . . Robots Melted . | . . . . . . Combat Hostiles . | . . . . . . Parts Melted . | . . . . . . Heat Transferred 272 | . . . . . 272 Parts Sabotaged . | . . . . . . Parts Stolen . | . . . . . . Parts Stripped . | . . . . . . Power Chain Reactions 1 | . . . . . 1 Alert | -11 -10 -10 -10 -9 -8 ------- Run | Yrd Mat Min Exi Min Mat Maximum Alert Level . | . . . . . . Low Security (%) 100 | 100 100 100 . 100 100 Level 1 . | . . . . . . Level 2 . | . . . . . . Level 3 . | . . . . . . Level 4 . | . . . . . . Level 5 . | . . . . . . High Security . | . . . . . . Max Security . | . . . . . . Peak Influence 175 | . 125 40 . 30 175 Initial 7 | . . 2 . . 7 Average 37 | . 53 6 . . 60 Influence Increases 616 | . 231 40 . 30 315 Destroy 0b10 Robot/C 360 | . 160 40 . . 160 Destroy 0b10 Robot/NC 35 | . 10 . . . 25 Destroy Leader 82 | . 32 . . . 50 Successful Hack 14 | . 14 . . . . Disable Machine 30 | . . . . . 30 Destroy Structure 50 | . . . . . 50 Lose Combat Pursuer 45 | . 15 . . 30 . Influence Decreases 529 | . 224 47 . 10 248 Entered New Map 18 | . . 5 . . 13 Time Decay 441 | . 224 42 . 10 165 Lost Part 70 | . . . . . 70 Squads Dispatched 4 | . 1 . . . 3 Investigation . | . . . . . . Extermination . | . . . . . . Reinforcement 3 | . 1 . . . 2 Assault . | . . . . . . Garrison 1 | . . . . . 1 Intercept . | . . . . . . Searches Triggered . | . . . . . . Construction Impeded . | . . . . . . Haulers Reinforced . | . . . . . . Active Scanning Responses . | . . . . . . Cargo Convoy Interrupts . | . . . . . . Stealth | -11 -10 -10 -10 -9 -8 --------- Run | Yrd Mat Min Exi Min Mat Distress Signals 1 | . 1 . . . . Communications Jammed . | . . . . . . Distress Signals . | . . . . . . Times Spotted 37 | . 16 3 . 2 16 Peak Tracking Total 5 | . 5 3 . 3 4 Tactical Retreats 2 | . 1 . . 1 . Traps | -11 -10 -10 -10 -9 -8 ------- Run | Yrd Mat Min Exi Min Mat Traps Triggered . | . . . . . . Indirectly . | . . . . . . Trap Hack Attempts . | . . . . . . Triggered . | . . . . . . Disarmed . | . . . . . . Reprogrammed . | . . . . . . Reused . | . . . . . . Traps Extracted . | . . . . . . Installed . | . . . . . . Triggered . | . . . . . . Machines | -11 -10 -10 -10 -9 -8 ---------- Run | Yrd Mat Min Exi Min Mat Machines Disabled 2 | . . . . . 2 Max in Single Turn 1 | . . . . . 1 Machines Repaired . | . . . . . . Machines Dismantled . | . . . . . . Machines Sabotaged . | . . . . . . Overloaded Fab Kills . | . . . . . . Hacking | -11 -10 -10 -10 -9 -8 --------- Run | Yrd Mat Min Exi Min Mat Machines Accessed 2 | . 1 . 1 . . Terminals 1 | . 1 . . . . Fabricators . | . . . . . . Repair Stations . | . . . . . . Recycling Units . | . . . . . . Scanalyzers . | . . . . . . Garrison Access . | . . . . . . Total Hacks 3 | . 2 . 1 . . Successful 2 | . 1 . 1 . . Failed 1 | . 1 . . . . Catastrophic . | . . . . . . Database Lockouts . | . . . . . . Manual 3 | . 2 . 1 . . Terminals 2 | . 2 . . . . Fabricators . | . . . . . . Repair Stations . | . . . . . . Recycling Units . | . . . . . . Scanalyzers . | . . . . . . Garrison Access . | . . . . . . Terminal Hacks 1 | . . . 1 . . Proto ID Catalog 1 | . . . 1 . . Fabricator Hacks . | . . . . . . Repair Station Hacks . | . . . . . . Recycling Unit Hacks . | . . . . . . Scanalyzer . | . . . . . . Garrison Access Hacks . | . . . . . . Unauthorized Hacks 1 | . 1 . . . . Terminals 1 | . 1 . . . . Botnet 1 | . 1 . . . . Fabricators . | . . . . . . Repair Stations . | . . . . . . Recycling Units . | . . . . . . Scanalyzers . | . . . . . . Garrison Access . | . . . . . . Data Cores Recovered . | . . . . . . Used . | . . . . . . Hacking Detections 1 | . 1 . . . . Full Trace Events . | . . . . . . Feedback Events . | . . . . . . Feedback Blocked . | . . . . . . Robot Schematics Acquired . | . . . . . . Robots Built . | . . . . . . Authchips . | . . . . . . Time . | . . . . . . Total Robot Build Rating . | . . . . . . Part Schematics Acquired . | . . . . . . Parts Built . | . . . . . . Authchips . | . . . . . . Time . | . . . . . . Total Part Build Rating . | . . . . . . Parts Repaired . | . . . . . . Time . | . . . . . . Parts Recycled . | . . . . . . Recycled Matter . | . . . . . . Retrieved Matter . | . . . . . . Retrieved Components . | . . . . . . Parts Scanalyzed . | . . . . . . Part Schematics Acquired . | . . . . . . Parts Damaged . | . . . . . . Bothacking | -11 -10 -10 -10 -9 -8 ------------ Run | Yrd Mat Min Exi Min Mat Used RIF Installer . | . . . . . . Robots Hacked . | . . . . . . Non-combat . | . . . . . . Combat . | . . . . . . Robot Hacks Applied . | . . . . . . Relay Couplers Released . | . . . . . . Fabnet Peak Effective % . | . . . . . . Robots Rewired . | . . . . . . Allies Hacked . | . . . . . . Hacks Repelled . | . . . . . . Allies | -11 -10 -10 -10 -9 -8 -------- Run | Yrd Mat Min Exi Min Mat Total Allies . | . . . . . . Largest Group . | . . . . . . Highest-Rated Group . | . . . . . . Highest-Rated Ally . | . . . . . . Total Orders . | . . . . . . Ally Attacks . | . . . . . . Total Damage . | . . . . . . Kills . | . . . . . . Allies Corrupted . | . . . . . . Allies Melted . | . . . . . . Intel | -11 -10 -10 -10 -9 -8 ------- Run | Yrd Mat Min Exi Min Mat Active Infowar (turns) . | . . . . . . Robot Analysis Total . | . . . . . . Derelict Logs Recovered 1 | . . 1 . . . Drone Launches . | . . . . . . Drone Recoveries . | . . . . . . Exploration | -11 -10 -10 -10 -9 -8 ------------- Run | Yrd Mat Min Exi Min Mat Turns Passed 2161 | 79 582 276 295 325 604 Spaces Moved 1748 | 76 456 244 278 310 384 Core 12 | 6 . . . . 6 Treads 106 | . . . . . 106 Legs . | . . . . . . Wheels 1630 | 70 456 244 278 310 272 Hover . | . . . . . . Flight . | . . . . . . Fastest Speed 50 | 50 90 105 105 105 105 Average Speed 106 | 86 95 105 105 105 126 Slowest Speed 450 | 90 105 105 105 105 450 Overloaded Moves . | . . . . . . Propulsion Burnouts . | . . . . . . Robots Hopped . | . . . . . . Potential Cave-ins . | . . . . . . Cave-ins Triggered . | . . . . . . Exploration Rate (%) 41 | 3 74 32 62 60 16 Regions Visited 5 Branch Regions 3 Pre-discovered Areas . | . . . . . . Known Exits Taken . | . . . . . . Unknown Exits Taken 5 | 1 1 1 1 1 . Scrap Searched 2 | . . . . 2 . Spaces Dug . | . . . . . . Terrain Destroyed 49 | . . . . . 49 Melee . | . . . . . . Projectile 2 | . . . . . 2 AOE 47 | . . . . . 47 Terrain Rammed . | . . . . . . Walls Destroyed . | . . . . . . Machines Disabled . | . . . . . . Actions | -11 -10 -10 -10 -9 -8 --------- Run | Yrd Mat Min Exi Min Mat Total 1936 | 85 554 255 281 309 452 Wait 66 | . 52 5 . . 9 Move 1743 | 75 455 243 277 309 384 Hop . | . . . . . . Pick Up 25 | 3 11 . 3 . 8 Fast Attach 11 | 6 . . . . 5 Attach 5 | . 1 . . . 4 Detach . | . . . . . . Swap 8 | 1 6 . . . 1 Drop 10 | . 5 . 1 . 4 Fire 59 | . 24 4 . . 31 Melee . | . . . . . . Ram 4 | . . 3 . . 1 Kick . | . . . . . . Crush 5 | . . . . . 5 Escape Stasis . | . . . . . . Rewire . | . . . . . . Trap . | . . . . . . Miscellaneous . | . . . . . . Route ------- -11/Scrapyard -10/Materials (discovered 3 exits: [*Mat x2] / [*Min]) -10/Mines -10/Exiles -9/Mines -8/Materials History --------- Turn | Location | Event 30 | -11/Scrapyard | Discovered new exit (range 15) 80 | -11/Scrapyard | Entered Materials 305 | -10/Materials | Build established: Mutant 316 | -10/Materials | Discovered new exit (range 11) 507 | -10/Materials | Discovered new exit (range 16) 650 | -10/Materials | Discovered new exit (range 6) 662 | -10/Materials | Entered Mines 695 | -10/Mines | Learned Materials trap positions 814 | -10/Mines | Deemed a non-threat by the Exiles lab entrance 815 | -10/Mines | Discovered new exit (range 5) 898 | -10/Mines | Assembled infested the area 938 | -10/Mines | Entered Exiles 964 | -10/Exiles | Met 8R-AWN 982 | -10/Exiles | Met EX-HEX 1011 | -10/Exiles | Met EX-BIN 1033 | -10/Exiles | Aligned with FarCom system 1034 | -10/Exiles | Given EX-Vault access code 1066 | -10/Exiles | Opened EX-Vault 1079 | -10/Exiles | Found YOLO Cannon 1101 | -10/Exiles | Warned to stay clear of 0b10 Research branches 1130 | -10/Exiles | Met EX-DEC 1221 | -10/Exiles | Discovered new exit (range 12) 1233 | -10/Exiles | Left Exiles lab with YOLO Cannon 1233 | -10/Exiles | Entered Mines 1414 | -9/Mines | Discovered new exit (range 8) 1558 | -9/Mines | Entered Materials 1558 | -8/Materials | Evolved 4 slots: Propulsion x1, Utility x2, Weapon x1 1559 | -8/Materials | Loaded intel: 29 trap records 1924 | -8/Materials | Lost 4 parts (2u2w) 1975 | -8/Materials | Lost 3 parts (1p1n1w) 2156 | -8/Materials | Garrison activated, responded to threat 2162 | -8/Materials | Self-destructed Last Messages --------------- 01988_ R-06 Scavenger collects Corrupted Wheel. 01989_ The unstable cave ceiling collapses. 01989_ Acquired 64 matter. 01989_ U-05 Engineer lays Concrete. 01990_ Slammed into R-06 Scavenger. 01991_ Acquired 1 matter. 02002_ R-06 Scavenger collects Corrupted Aluminum Leg. 02006_ R-06 Scavenger collects Aluminum Leg. 02028_ OZ#ZXA OMOZAB%I7NS&MEEAFHF 3W<=PZ%Q Q 02053_ Acquired Lgt. Ion Engine. 02054_ Acquired 10 matter. 02061_ U-05 Engineer builds a Wall. 02068_ Slammed into U-05 Engineer. 02069_ Slammed into T-07 Excavator. 02149_ Lgt. Ion Engine severed. 02152_ Beam Cannon severed. 02155_ Acquired Beam Cannon. 02156_ C-17 Slicer calls for garrison reinforcements. 02156_ ALERT: Activating Garrison Access M001. 02161_ System corrupted: Energy discharge (-15). Map ----- +----------------------------------------------------+ | ??????????????????????????????????????? | | ??????????????????????????????????????? | | ??????????????????????????????????????? | | ??????????????????????????????????????? | | ??????????????????????????????????????? | | ??????????????????????????????????????? | | ??????????????????????????????????????? | | ??????????????????????????????????????? | | ??????????????????????????????????????? | | ??????????????????????????????????????? | | ??????????????????????????????????????? | | ??????????????????????????????????????? | | ??????????????????????????????????????? | | ??????????????????????????????????????? | | ??????????????????????????????????????? | | ???????########???????????????????????? | | ???????# #???????????????????????? | | ???????# #???????????????????????? | | ???????# #???????????????????????? | | ???????# [[ #???????????????????????? | | ######## #???????????????????????? | | # ## #???????########????????? | | # " #####+###???????# #????????? | | # "G" #### ########## #????????? | | # " " lb *ct + #????????? | | #/ # @c # "T" #????????? | | # # ######### # """ #????????? | | # # #???????# # #????????? | | ####### #???????# ########????????? | | ????# #???????# ####????????????? | | ????# #???????# #????????????? | | #####+## #???????# #????????????? | | # # #???????# #????????????? | | # / # #######?# #????????????? | | # # ##!!!!###%####????????????? | | #! + #! !## #???????????????# | | # # # ## #???????????????# | | #####+## # ###### #??????????###### | | ????# #????# #???############# | | ????#### #????# #???# %%### # | | ???????# #????# #???#"" %+ + | | ???#####+##+## #????# #???#"T % ### !# | | ???# # #????# #???#" # ## ## | | ???# # ###??# #??## ####%## | | ???# """ """ # #??# #### ! #### #! | | ???# """ """ + #??# ## %+ %% #! | | ???# """ """ # #??####%####+###%##+## | | ???# # #?????# ###% ##*#=%=[ | | ???# # #?????# * !#%[ | | ???# # #?????# ### ## #/ | +----------------------------------------------------+ Best States ------------- Heat Dissipation 45 Energy Generation 10 Energy Capacity 250 Matter Stores 300 Matter Capacity 300 Sight Range 16 Terrain Scan Density 10 Armor Coverage 300 Utility Shielding 66 Evasion (%) 42 Recoil Reduction 2 Item Schematics ----------------- None Robot Schematics ------------------ None Fabricated ------------ Nothing Repaired ---------- Nothing Alien Tech Used ----------------- None Achievements -------------- None Challenges ------------ None Game ------ Seed WaveUtilityWheel Manual? 0 Play Time 00:14:51 Cumulative 39.1 hours Start 2025.10.14 @ 20:00:20 End 2025.10.19 @ 11:21:50 Sessions 6 Manual Loads 0 Difficulty Rogue Special Mode None Game No. 96 Rogue 89 Adventurer 7 Explorer 0 Win Type - Total 1 Types 1/0/0/0/0/0/0/0/0/0 Lore% 9 Gallery% 31 Achievement% 32 Wizard Run 0 Options --------- Layout 0 ASCII 0 Keyboard 0 Movement Vi Keybinds 0 Fullscreen 1 Font 18/SmallcapsGlow Map View 112x50 Zoom Use 0% Tactical HUD 1 Map Filters NONE Filters NONE Steam 1 RUN: e35ef6c6-beac-4bf3-a67c-25cbc60a9c09